Cogmind - Beta 9.4 @@@ ROGUE MODE // 2020.01.23 @ 09:29:54 // Winter2019/RPGLIKE Player: PyroDawn Result: Heading to fleet! Performance ------------- Evolutions (9) 4500 Regions Visited (23) 4600 Robots Destroyed (544) 2720 Value Destroyed (26153) 26153 Prototype IDs (114) 2280 Alien Tech Used (13) 2600 Bonus (42577) 42577 TOTAL SCORE: 85430 Bonus ------- Triggered High Security 1500 Triggered Max Security 3000 High Alert Combat Kills 10114 Follower Combat Kills 4225 Entered Garrisons 200 Aligned with FarCom 300 Built Enhanced Grunts 300 A7 Reached Mainframe 300 Used Core Reset Matrix 3000 Scanned by Researcher 500 Pursued by Intercept 1500 Met Sigix 2000 Activated Exoskeleton 3000 Met MAIN.C 5000 Destroyed MAIN.C Shell 5000 Win 3000 Friendly Fire -362 Cogmind --------- Core Integrity 136/2350 Matter 300/300 Energy 498/580 System Corruption 15% Temperature Cool (9) Movement Flying (14) Location To Fleet Rendezvous Parts ------- > --- POWER (1) -------- Mini Fusion Reactor > --- PROPULSION (3) --- Experimental Q-thruster Experimental Q-thruster Experimental Q-thruster > --- UTILITY (9) ------ Experimental Core Analyzer Advanced Armor Integrity Analyzer Nanoactuators Improved Stasis Canceller Improved Stasis Canceller Reaction Control System Experimental Phase Shifter Advanced Shield Generator Advanced System Shield > --- WEAPON (4) ------- Gamma Bomb Array Improved Remote Datajack Sigix Broadsword > --- INVENTORY (5) ---- Experimental Sensor Array Improved Stasis Canceller High-powered Transdimensional Reconstructor Matter Drive Peak State ------------ > --- POWER ------------ Mini Fusion Reactor > --- PROPULSION ------- Experimental Q-thruster Experimental Q-thruster Experimental Q-thruster > --- UTILITY ---------- Experimental Signal Interpreter Advanced Core Analyzer Experimental Core Analyzer Advanced Armor Integrity Analyzer Reaction Control System Improved Phase Shifter Advanced Hacking Suite Advanced System Shield > --- WEAPON ----------- Sigix Broadsword Sigix Broadsword > --- INVENTORY -------- Experimental Sensor Array Transdimensional Reconstructor High-powered Transdimensional Reconstructor Matter Drive [Rating: 157] Favorites ----------- Power Mini Fusion Reactor Engine Light Angular Momentum Engine Power Core Light Nuclear Core Reactor Mini Fusion Reactor Propulsion Improved VTOL Module Flight Unit Improved VTOL Module Utility Experimental Sensor Array Device Experimental Sensor Array Storage Compact Battery Processor Experimental Signal Interpreter Hackware Advanced System Shield Protection Improved Medium Armor Plating Weapon Sigix Broadsword Energy Gun AWS/Thermal Energy Cannon Advanced Beam Cannon Ballistic Gun Improved KE Penetrator Ballistic Cannon Hypervelocity Mass Driver Launcher Gamma Bomb Array Special Weapon Improved Remote Datajack Impact Weapon Core Stripper Slashing Weapon Sigix Broadsword Piercing Weapon Spear Special Melee Weapon Datajack Build | -11 -10 -10 -9 -9 -9 -8 -8 -8 -8 -7 -6 -5 -5 -5 -5 -4 -3 -3 -3 -2 -2 -1 -1 ------- Run | Scr Mat Min Mat Min Exi Min Mat Gar Mat Fac Fac Fac Ext Cet Arc Fac Res Qua Sec Res Tes Acc Com Slots Evolved 13 | . 2 1 2 1 . . 1 . . . 1 1 . . . 2 . 1 . . . 1 . Power . | . . . . . . . . . . . . . . . . . . . . . . . . Propulsion 2 | . 1 . 1 . . . . . . . . . . . . . . . . . . . . Utility 8 | . 1 . 1 1 . . . . . . 1 1 . . . 2 . . . . . 1 . Weapon 3 | . . 1 . . . . 1 . . . . . . . . . . 1 . . . . . Parts Attached 384 | 3 9 5 5 . 5 . 10 . 12 8 19 18 11 12 1 41 22 71 76 18 4 28 6 Power 32 | 1 1 . . . . . . . . 1 1 5 1 1 . 5 2 10 2 2 . . . Engine 3 | 1 . . . . . . . . . . . . 1 . . . . 1 . . . . . Core 11 | . 1 . . . . . . . . 1 1 5 . . . 2 1 . . . . . . Reactor 18 | . . . . . . . . . . . . . . 1 . 3 1 9 2 2 . . . Propulsion 34 | . 2 3 4 . . . 4 . . 1 . 1 . . . 1 8 4 2 . . 4 . Treads . | . . . . . . . . . . . . . . . . . . . . . . . . Leg . | . . . . . . . . . . . . . . . . . . . . . . . . Wheel . | . . . . . . . . . . . . . . . . . . . . . . . . Hover . | . . . . . . . . . . . . . . . . . . . . . . . . Flight 34 | . 2 3 4 . . . 4 . . 1 . 1 . . . 1 8 4 2 . . 4 . Utility 238 | . 3 1 1 . 2 . 1 . 5 3 9 5 6 7 1 22 11 46 70 12 4 24 5 Device 202 | . 2 1 1 . 2 . 1 . 5 3 6 4 4 4 1 18 10 41 58 11 4 21 5 Storage 1 | . . . . . . . . . . . . . . . . . . 1 . . . . . Processor 21 | . . . . . . . . . . . 3 1 . . . 3 . 3 8 . . 3 . Hackware 6 | . 1 . . . . . . . . . . . 1 . . . 1 1 2 . . . . Protection 8 | . . . . . . . . . . . . . 1 3 . 1 . . 2 1 . . . Artifact . | . . . . . . . . . . . . . . . . . . . . . . . . Weapon 80 | 2 3 1 . . 3 . 5 . 7 3 9 7 4 4 . 13 1 11 2 4 . . 1 Energy Gun 8 | . . . . . 1 . . . 5 1 . . . . . . 1 . . . . . . Energy Cannon 16 | . 2 1 . . 1 . 2 . . 1 4 3 . . . . . 2 . . . . . Ballistic Gun 7 | 2 . . . . . . . . . . . 1 . 2 . 2 . . . . . . . Ballistic Cannon 1 | . . . . . . . . . . . . . . . . 1 . . . . . . . Launcher 4 | . . . . . . . . . . . . . . . . . . 2 . 1 . . 1 Special Weapon 9 | . . . . . 1 . 1 . 1 . 1 . 1 1 . . . 1 . 2 . . . Impact Weapon 2 | . . . . . . . . . . 1 . . . . . . . 1 . . . . . Slashing Weapon 17 | . . . . . . . 2 . 1 . 2 . 2 1 . 3 . 4 1 1 . . . Piercing Weapon 15 | . . . . . . . . . . . 2 3 1 . . 7 . 1 1 . . . . Special Melee Weapon 1 | . 1 . . . . . . . . . . . . . . . . . . . . . . Unidentified Prototypes 43 | . . 1 . . 3 . 1 . 1 2 2 2 . 2 . 4 5 3 12 3 . 2 . Parts Lost 1 | . . . . . . . . . . . . . 1 . . . . . . . . . . Power 1 | . . . . . . . . . . . . . 1 . . . . . . . . . . Propulsion . | . . . . . . . . . . . . . . . . . . . . . . . . Utility . | . . . . . . . . . . . . . . . . . . . . . . . . Weapon . | . . . . . . . . . . . . . . . . . . . . . . . . Highest Loss Streak 1 | . . . . . . . . . . . . . 1 . . . . . . . . . . Average Slot Usage (%) 93 | . 92 100 97 92 89 90 92 100 91 90 96 97 97 98 100 99 92 90 86 91 93 93 93 Core 5 | . 10 14 12 10 10 10 9 9 9 9 8 7 4 . . 1 . . . . . . . Reactor 2 | . . . . . . . . . . . . . . 4 7 4 6 5 6 6 6 5 5 Flight 23 | . 31 29 25 30 30 30 27 27 27 27 26 23 23 23 23 20 19 19 18 18 18 16 17 Device 26 | . 11 14 20 20 26 30 27 27 35 36 26 28 27 29 30 28 31 25 24 24 25 28 34 Processor 8 | . . . . . . . . . . . 10 15 12 7 7 13 13 12 12 18 18 17 11 Hackware 7 | . 12 14 12 10 10 10 9 9 . . . . 1 7 7 6 7 12 12 6 6 5 5 Energy Gun 2 | . . . . . 7 10 6 . 13 18 2 . . . . . . . . . . . . Energy Cannon 5 | . 5 25 25 20 5 . 8 9 2 . 8 5 . . . . . 2 . . . . . Slashing Weapon 3 | . . . . . . . 2 9 1 . 5 . 1 . . 6 . 3 11 7 6 5 5 Piercing Weapon 4 | . . . . . . . . . . . 6 11 19 15 15 10 13 4 . . . . . Naked Turns . | . . . . . . . . . . . . . . . . . . . . . . . . Heaviest Build 54 | 5 10 14 15 15 16 16 25 25 28 22 29 29 29 36 36 40 37 44 34 43 40 45 54 Greatest Support 55 | 8 13 18 28 28 28 28 28 28 28 28 32 34 32 37 39 40 49 55 54 54 54 54 54 Greatest Overweight (x) 1 | . . . . . . . . . . . . . . . . . . . . . . 1 . Average Overweight (x) . | . . . . . . . . . . . . . . . . . . . . . . . . Largest Inventory Capacity 5 | . 1 1 1 1 1 1 2 2 3 3 3 3 3 3 3 4 4 5 5 5 5 5 5 Average Capacity 3 | . . 1 1 1 1 1 1 2 2 3 3 3 3 3 3 3 4 4 5 5 5 5 5 Most Carried 5 | . 1 1 1 1 1 1 2 2 3 3 3 3 3 3 3 4 4 5 5 5 5 5 5 Average Carried 3 | . . . . 1 . 1 1 2 2 2 2 2 2 2 2 3 4 4 4 4 4 4 5 Final Capacity 5 | . 1 1 1 1 1 1 2 2 3 3 3 3 3 3 3 4 4 5 5 5 5 5 5 Final Carried 5 | . 1 1 1 1 1 1 2 2 3 3 3 3 3 2 3 4 4 5 5 5 5 5 5 Class Distribution -------------------- 39% | Hacker-Sprinter 33% | Wizard-Sprinter 14% | Hacker-Scout 11% | Hacker-Mutant Dominant Class ---------------- Hacker-Mutant | -10/Materials Hacker-Mutant | -10/Mines Hacker-Mutant | -9/Materials Hacker-Sprinter | -9/Mines Hacker-Sprinter | -9/Exiles Hacker-Scout | -8/Mines Hacker-Scout | -8/Materials Hacker-Scout | -8/Garrison Hacker-Scout | -8/Materials Hacker-Sprinter | -7/Factory Hacker-Sprinter | -6/Factory Hacker-Sprinter | -5/Factory Hacker-Sprinter | -5/Extension Hacker-Sprinter | -5/Cetus Hacker-Sprinter | -5/Archives Hacker-Sprinter | -4/Factory Wizard-Sprinter | -3/Research Wizard-Sprinter | -3/Quarantine Wizard-Sprinter | -3/Section 7 Wizard-Sprinter | -2/Research Wizard-Sprinter | -2/Testing Wizard-Sprinter | -1/Access Wizard-Sprinter | -1/Command Resources | -11 -10 -10 -9 -9 -9 -8 -8 -8 -8 -7 -6 -5 -5 -5 -5 -4 -3 -3 -3 -2 -2 -1 -1 ----------- Run | Scr Mat Min Mat Min Exi Min Mat Gar Mat Fac Fac Fac Ext Cet Arc Fac Res Qua Sec Res Tes Acc Com Matter Collected 4700 | 230 333 50 41 9 . 50 100 . 110 90 180 190 110 120 22 478 160 810 850 320 50 250 147 Remotely 10 | . . . . . . . . . . . . . . . . . . 10 . . . . . Salvage Created 24807 | . 649 251 1744 113 . 193 2385 78 1870 664 2275 1164 710 . 397 1161 1991 2067 3341 1686 211 709 1148 Parts 1318 | . 52 6 117 12 . 7 140 10 114 39 124 71 32 . 26 75 117 94 176 59 9 27 11 Haulers Intercepted 28 | . 2 . 5 . . . 5 . 4 2 1 1 1 . . 2 2 1 1 . . 1 . Recyclers Shooed 4 | . . . 1 . . . . . 1 . 1 . . . . 1 . . . . . . . Parts Field Recycled . | . . . . . . . . . . . . . . . . . . . . . . . . Retrieved Matter . | . . . . . . . . . . . . . . . . . . . . . . . . Parts Self-Destructed . | . . . . . . . . . . . . . . . . . . . . . . . . Prevented . | . . . . . . . . . . . . . . . . . . . . . . . . Kills | -11 -10 -10 -9 -9 -9 -8 -8 -8 -8 -7 -6 -5 -5 -5 -5 -4 -3 -3 -3 -2 -2 -1 -1 ------- Run | Scr Mat Min Mat Min Exi Min Mat Gar Mat Fac Fac Fac Ext Cet Arc Fac Res Qua Sec Res Tes Acc Com Combat Hostiles Destroyed 416 | . 13 13 36 8 . 3 46 3 40 17 49 21 13 . 1 16 24 26 48 21 2 10 6 Melee 215 | . . . . . . . 5 1 4 . 36 21 13 . . 15 24 23 48 7 2 10 6 Guns 98 | . 9 . . . . 3 35 . 30 16 3 . . . 1 1 . . . . . . . Cannons 85 | . 4 13 36 8 . . 6 1 5 . 10 . . . . . . 2 . . . . . AOE 6 | . . . . . . . . . . . . . . . . . . . . 6 . . . Classes Destroyed 25 | . 6 2 5 . . . 1 . 3 . 1 . . . . 1 1 3 2 . . . . Worker 1 | . 1 . . . . . . . . . . . . . . . . . . . . . . Builder 1 | . . . . . . . 1 . . . . . . . . . . . . . . . . Tunneler 1 | . . . . . . . . . 1 . . . . . . . . . . . . . . Hauler 28 | . 2 . 5 . . . 5 . 4 2 1 1 1 . . 2 2 1 1 . . 1 . Recycler 11 | . . . 2 . . . 2 . . . 2 1 . . . . . 3 1 . . . . Mechanic 3 | . . . . . . . . . 1 . . . . . . . . 1 . 1 . . . Operator 23 | . 2 . 2 . . . 3 . 1 . 1 1 . . 8 3 1 . 1 . . . . Watcher 53 | . 3 . 4 . . . 5 . 5 3 5 3 . . . 7 8 3 5 1 . 1 . Swarmer 84 | . 3 3 9 8 . . 11 . 6 8 4 9 2 . . 5 3 5 7 1 . . . Saboteur 4 | . . . . . . . . . . . . . . . . 1 . . 1 2 . . . Grunt 146 | . 10 2 14 . . 2 20 2 17 3 28 4 5 . . 3 6 10 9 10 . 1 . Brawler 10 | . . . 1 . . . 1 . 3 . 3 . . . . . 1 . . 1 . . . Duelist 8 | . . . 1 . . 1 1 . . . 2 . 2 . . . . . . 1 . . . Protector 7 | . . . 1 . . . . . 1 . 1 . 1 . . . . 1 1 1 . . . Researcher 5 | . . . . . . . . . . . . . . . . . . 1 3 . 1 . . Sentry 78 | . . . 10 . . . 12 1 10 4 7 4 3 . 1 4 3 . 13 3 2 1 . Demolisher 4 | . . 1 . . . . 1 . . . . . . . . . . . 2 . . . . Hunter 25 | . . . . . . . . . 3 2 2 2 . . . . 8 . 4 1 . 2 1 Programmer 20 | . . . . . . . . . . . 2 2 . . . 3 2 6 3 . . . 2 Behemoth 1 | . . . . . . . . . . . . . . . . . 1 . . . . . . Lightning 2 | . . . . . . . . . . . . . . . . . . 2 . . . . . Tracker 5 | . . . . . . . . . . . . . . . . . . . . 1 . 4 . Combat Programmer 5 | . . . . . . . . . . . . . . . . . . . 1 . . 2 2 Investigator 1 | . . . . . . . . . . . . . . . . . . . 1 . . . . Striker 2 | . . . . . . . . . . . . . . . . . . . 2 . . . . Executioner 3 | . . . . . . . . . . . . . . . . . . . 3 . . . . Alpha 7 3 | . . . . . . . . . . . . . . . . . . 1 2 . . . . Fortress 1 | . . . . . . . . . . . . . . . . . . 1 . . . . . Assembled 8 | . . 7 . . . . . . . . . . . . . . . . . 1 . . . Best Kill Streak 17 | . 5 3 13 3 . 3 17 2 12 6 6 10 4 . 9 4 7 5 6 14 3 4 2 Combat Bots Only 13 | . 5 3 8 3 . 3 13 2 8 5 6 8 4 . 1 3 5 5 5 12 2 3 2 Max Kills in Single Turn 3 | . 1 1 2 1 . 1 1 1 1 2 1 1 1 . 1 1 1 1 1 3 1 1 1 Gunslinging . | . . . . . . . . . . . . . . . . . . . . . . . . Exploded 2 | . . . . . . . . . . . . . . . . . . . . 2 . . . Melee 1 | . . . . . . . 1 1 1 . 1 1 1 . . 1 1 1 1 1 1 1 1 Uniques/NPCs Destroyed 1 | . . . . . . . . . . . . . . . . . . . . . . . 1 MAIN.C Shell (-1/Command) Combat | -11 -10 -10 -9 -9 -9 -8 -8 -8 -8 -7 -6 -5 -5 -5 -5 -4 -3 -3 -3 -2 -2 -1 -1 -------- Run | Scr Mat Min Mat Min Exi Min Mat Gar Mat Fac Fac Fac Ext Cet Arc Fac Res Qua Sec Res Tes Acc Com Damage Taken 18231 | . 344 214 488 138 . . 605 637 465 664 1956 1008 713 50 179 389 469 1778 3265 1067 793 1195 1814 Core 14645 | . 297 184 387 118 . . 493 517 369 531 1599 812 617 29 151 316 386 1432 2559 839 631 937 1441 Absorbed by Shields 1941 | . . . . . . . . 62 . . . . 8 15 43 213 332 . 630 . . . 638 Redirected to Core 12351 | . 144 96 314 60 . . 385 406 311 426 1184 686 331 29 94 241 281 1245 2482 806 574 899 1357 Core Remaining (%) 70 | 100 . 99 . . . 100 . . 91 92 52 . . . 100 96 . . 15 . 30 . 5 Volleys Fired 566 | . 103 34 96 16 . . 55 16 77 63 55 . 2 2 3 17 . 10 . 14 . . 3 Largest 2 | . 1 2 2 2 . . 1 1 1 1 2 . 1 1 1 1 . 1 . 1 . . 1 Hottest 300 | . 68 136 136 136 . . 63 63 63 61 165 . . . 35 35 . 300 . 80 . . 80 Shots Fired 884 | . 103 54 190 32 . 3 132 16 141 80 80 . 2 2 3 17 . 10 . 14 1 . 4 Gun 395 | . 81 . . . . 3 77 . 118 80 16 . . . 3 17 . . . . . . . Cannon 464 | . 22 54 190 32 . . 55 16 23 . 63 . . . . . . 9 . . . . . Launcher 18 | . . . . . . . . . . . . . . . . . . 1 . 14 1 . 2 Special 7 | . . . . . . . . . . . 1 . 2 2 . . . . . . . . 2 Kinetic 101 | . 81 . . . . . . . . . . . . . 3 17 . . . . . . . Thermal 656 | . 22 54 190 32 . 3 77 . 118 80 70 . . . . . . 10 . . . . . Explosive . | . . . . . . . . . . . . . . . . . . . . . . . . Electromagnetic 120 | . . . . . . . 55 16 23 . 9 . . . . . . . . 14 1 . 2 Robot Hit Streak 45 | . 9 6 16 5 . 4 44 45 43 44 41 . 4 6 9 6 . 12 . 9 7 . 6 Robot Miss Streak 5 | . 5 4 3 2 . . 2 1 2 1 2 . . . . 1 . . . 1 1 . 2 Penetration Max 2 | . . . . . . . . . . . . . . . . . . 2 . . . . . Secondary Targets . | . . . . . . . . . . . . . . . . . . . . . . . . Autonomous 183 | . . . . . . 3 78 . 65 20 17 . . . . . . . . . . . . Shots Hit Robots 1492 | . 70 28 126 16 . 3 138 16 146 74 197 73 46 2 14 68 86 85 149 35 11 31 78 Core Hits 833 | . 32 14 56 8 . 3 68 7 58 27 101 42 26 . 10 32 51 49 74 122 5 15 33 Critical Hits 172 | . 6 6 18 2 . . 1 . . . 12 6 9 . 3 6 15 25 31 9 2 4 17 Critical Kills 56 | . 1 4 8 . . . . . . . 6 2 5 . 3 2 6 8 8 3 . . . Critical Parts Destroyed 82 | . 5 2 9 1 . . 1 . . . 4 3 3 . . 4 8 13 14 4 2 2 7 Melee Attacks 978 | . . . . . . . 15 4 12 . 143 82 54 . 14 83 113 109 193 26 12 35 83 Kinetic 3 | . . . . . . . . . . . . . . . . . . 3 . . . . . Thermal 1 | . . . . . . . . . . . . . 1 . . . . . . . . . . Impact . | . . . . . . . . . . . . . . . . . . . . . . . . Slashing 459 | . . . . . . . 15 4 12 . 22 . . . . 11 . 46 193 26 12 35 83 Piercing 515 | . . . . . . . . . . . 121 82 53 . 14 72 113 60 . . . . . Sneak Attacks 58 | . . . . . . . . 1 . . 8 3 1 . 6 9 8 7 12 . . 3 . Combat Hostiles 21 | . . . . . . . . 1 . . 4 1 . . . 2 3 2 7 . . 1 . Follow-up Attacks 75 | . . . . . . . . . . . 16 2 8 . 1 8 14 6 19 1 . . . Damage Inflicted 86573 | . 1129 536 2937 403 . 99 4821 677 4545 2214 8383 2923 1858 . 1124 3782 5700 10567 16671 6191 1066 3315 7632 Guns 10180 | . 762 . . . . 99 2541 . 3528 2214 592 . . . 78 366 . . . . . . . Cannons 11486 | . 367 536 2937 403 . . 1354 399 505 . 2225 . . . . . . 2760 . . . . . Explosions 4642 | . . . . . . . 407 171 . . . . . . . . . 294 . 3751 19 . . Melee 60265 | . . . . . . . 519 107 512 . 5566 2923 1858 . 1046 3416 5700 7513 16671 2440 1047 3315 7632 Ramming . | . . . . . . . . . . . . . . . . . . . . . . . . Kinetic 1303 | . 762 . . . . . . . . . . . . . 78 366 . 97 . . . . . Thermal 19731 | . 367 536 2937 403 . 99 2948 171 3528 2214 2589 . . . . . . 3054 . 885 . . . Explosive . | . . . . . . . . . . . . . . . . . . . . . . . . Electromagnetic 5371 | . . . . . . . 1354 399 505 . 228 . . . . . . . . 2866 19 . . Impact . | . . . . . . . . . . . . . . . . . . . . . . . . Slashing 37168 | . . . . . . . 519 107 512 . 690 . . . . 200 . 4035 16671 2440 1047 3315 7632 Piercing 23000 | . . . . . . . . . . . 4876 2923 1858 . 1046 3216 5700 3381 . . . . . Highest Corruption 15 | . . . . . . . . . . 4 . . . 1 1 5 . 1 1 5 8 8 15 Average Corruption 2 | . . . . . . . . . . 4 . . . 1 1 1 . 1 1 3 5 3 11 Corruption Purged 10 | . . . . . . . . . . . . . . . . 8 . 1 1 . . . . Effects 56 | . . . . . . . . . . 1 . . . 1 1 4 . 4 3 4 5 1 32 Message Errors 8 | . . . . . . . . . . . . . . . . 2 . 2 1 2 1 . . Matter Fused 3 | . . . . . . . . . . . . . . . . . . . . . . . 3 Heat Flow Errors 4 | . . . . . . . . . . . . . . . . . . . . . 1 . 3 Energy Discharges 6 | . . . . . . . . . . 1 . . . . 1 1 . 1 . . . 1 1 Parts Rejected 4 | . . . . . . . . . . . . . . . . . . . . . . . 4 Data Loss (minor) 5 | . . . . . . . . . . . . . . 1 . . . . 2 1 . . 1 Data Loss (major) 2 | . . . . . . . . . . . . . . . . . . . . . 1 . 1 Misfires 2 | . . . . . . . . . . . . . . . . . . . . . 1 . 1 Misdirections 3 | . . . . . . . . . . . . . . . . . . . . . . . 3 Targeting Errors 19 | . . . . . . . . . . . . . . . . 1 . 1 . 1 1 . 15 Overload Shots . | . . . . . . . . . . . . . . . . . . . . . . . . Overflow Damage 5003 | . . 12 25 . . . 58 . 36 . 469 95 65 . 189 605 274 742 1618 353 45 298 119 Projectiles 237 | . . 12 25 . . . 4 . . . 196 . . . . . . . . . . . . Explosions 182 | . . . . . . . 54 . . . . . . . . . . . . 128 . . . Melee 4584 | . . . . . . . . . 36 . 273 95 65 . 189 605 274 742 1618 225 45 298 119 Knockbacks . | . . . . . . . . . . . . . . . . . . . . . . . . Impact . | . . . . . . . . . . . . . . . . . . . . . . . . Kinetic . | . . . . . . . . . . . . . . . . . . . . . . . . Secondary . | . . . . . . . . . . . . . . . . . . . . . . . . Self-Inflicted Damage 213 | . . . . . . . 19 145 . . . . . . . . . . . 22 9 . 18 Shots 9 | . . . . . . . 1 1 . . . . . . . . . . . 4 1 . 2 Rammed . | . . . . . . . . . . . . . . . . . . . . . . . . Targets Rammed . | . . . . . . . . . . . . . . . . . . . . . . . . Kicked . | . . . . . . . . . . . . . . . . . . . . . . . . Crushed . | . . . . . . . . . . . . . . . . . . . . . . . . Highest Temperature 234 | . 36 7 . . . . . 10 5 . 5 . . . . . . 140 . . 234 . 169 Average Temperature 57 | . 16 7 . . . . . 10 5 . 2 . . . . . . 64 . . 135 . 68 Received Heat Transfer 3372 | . 138 98 159 . . . 270 288 225 99 684 219 114 10 39 14 55 212 331 117 126 . 174 Siege Activations . | . . . . . . . . . . . . . . . . . . . . . . . . Robots Corrupted 14 | . . . . . . . 3 1 1 . . . . . . . . . . 9 . . . Combat Hostiles 10 | . . . . . . . . 1 1 . . . . . . . . . . 8 . . . Parts Fried 25 | . . . . . . . 9 2 1 . 1 . . . . . . . . 12 . . . Impact Corruptions . | . . . . . . . . . . . . . . . . . . . . . . . . Robots Melted 1 | . . . . . . . . . . 1 . . . . . . . . . . . . . Combat Hostiles 1 | . . . . . . . . . . 1 . . . . . . . . . . . . . Parts Melted 28 | . 2 . 9 1 . 1 1 . 6 4 . . 1 . . . . . 3 . . . . Heat Transferred 20199 | . 666 962 4689 629 . 111 3101 200 4053 2775 2333 . . . . . . 80 . 600 . . . Parts Sabotaged 11 | . . . . . . . . . . . . . 4 . . 6 . . 1 . . . . Parts Stolen . | . . . . . . . . . . . . . . . . . . . . . . . . Parts Stripped . | . . . . . . . . . . . . . . . . . . . . . . . . Power Chain Reactions 9 | . . . . . . . 4 1 . . . . . . . . . . . 4 . . . Missiles Intercepted . | . . . . . . . . . . . . . . . . . . . . . . . . Alert | -11 -10 -10 -9 -9 -9 -8 -8 -8 -8 -7 -6 -5 -5 -5 -5 -4 -3 -3 -3 -2 -2 -1 -1 ------- Run | Scr Mat Min Mat Min Exi Min Mat Gar Mat Fac Fac Fac Ext Cet Arc Fac Res Qua Sec Res Tes Acc Com Peak Influence 3084 | . 367 191 568 390 . 70 805 673 850 923 1915 1812 1216 749 603 2204 1487 779 2120 3084 1836 1428 568 Average Influence 756 | . 178 119 296 313 . 26 441 593 649 750 1100 1438 742 612 544 1389 1222 262 765 2304 1746 1178 376 Maximum Alert Level 5 | . 1 . 2 1 . . 3 2 3 3 5 5 4 3 2 5 4 3 5 5 5 4 2 Low Security (%) 15 | 100 51 100 26 12 . 100 14 . . . . . . . . . . 46 . . . . . Level 1 16 | . 48 . 51 87 . . 29 . 5 2 . . . 32 10 6 . 30 12 . . . 72 Level 2 22 | . . . 22 . . . 37 100 46 23 17 . 59 5 89 1 . 17 49 . . . 27 Level 3 18 | . . . . . . . 18 . 48 73 37 . 10 61 . 23 15 5 26 . . 19 . Level 4 17 | . . . . . . . . . . . 24 60 29 . . 30 84 . 1 3 . 80 . Level 5 2 | . . . . . . . . . . . 2 1 . . . 30 . . . . 10 . . High Security 3 | . . . . . . . . . . . 17 37 . . . 6 . . . . . . . Max Security 3 | . . . . . . . . . . . . . . . . . . . 9 96 89 . . Squads Dispatched 142 | . 3 . 2 . . . 8 . 6 4 23 11 3 . . 10 8 5 17 26 7 9 . Investigation 24 | . 1 . 1 . . . 4 . 3 3 7 1 1 . . 1 1 . . . . 1 . Extermination 11 | . . . . . . . . . . . 1 . . . . 2 2 4 2 . . . . Reinforcement 15 | . 2 . . . . . 1 . 1 1 1 2 . . . 3 1 1 1 . 1 . . Assault 69 | . . . 1 . . . . . 1 . 11 8 2 . . 3 4 . 12 20 6 1 . Garrison 11 | . . . . . . . 3 . 1 . 3 . . . . 1 . . . 3 . . . Intercept 12 | . . . . . . . . . . . . . . . . . . . 2 3 . 7 . Construction Impeded . | . . . . . . . . . . . . . . . . . . . . . . . . Haulers Reinforced 3 | . . . . . . . . . . 1 . 1 . . . . . . 1 . . . . Stealth | -11 -10 -10 -9 -9 -9 -8 -8 -8 -8 -7 -6 -5 -5 -5 -5 -4 -3 -3 -3 -2 -2 -1 -1 --------- Run | Scr Mat Min Mat Min Exi Min Mat Gar Mat Fac Fac Fac Ext Cet Arc Fac Res Qua Sec Res Tes Acc Com Distress Signals 27 | . 1 . 2 . . . 3 . 3 4 . . 2 1 . 2 . . 4 2 2 1 . Communications Jammed . | . . . . . . . . . . . . . . . . . . . . . . . . Distress Signals . | . . . . . . . . . . . . . . . . . . . . . . . . Times Spotted 961 | . 29 18 46 9 . 2 50 16 46 26 112 42 35 14 9 77 37 36 176 100 43 17 21 Peak Tracking Total 54 | . 6 3 6 3 . 1 6 9 5 5 25 16 6 8 4 10 5 5 54 37 34 7 9 Tactical Retreats 51 | . . 2 5 . . . . 4 1 2 10 2 2 . . 4 3 3 4 3 1 3 2 Traps | -11 -10 -10 -9 -9 -9 -8 -8 -8 -8 -7 -6 -5 -5 -5 -5 -4 -3 -3 -3 -2 -2 -1 -1 ------- Run | Scr Mat Min Mat Min Exi Min Mat Gar Mat Fac Fac Fac Ext Cet Arc Fac Res Qua Sec Res Tes Acc Com Traps Triggered 16 | . . . . . . . . 1 . 1 1 2 3 . . 4 . . . 2 . 1 1 Indirectly . | . . . . . . . . . . . . . . . . . . . . . . . . Trap Hack Attempts 59 | . 59 . . . . . . . . . . . . . . . . . . . . . . Triggered . | . . . . . . . . . . . . . . . . . . . . . . . . Disarmed 48 | . 1 . . . . . . . . . . . . . . 22 13 6 6 . . . . Reprogrammed 18 | . 11 . 3 . . . . . . . . . . . . 4 . . . . . . . Reused 1 | . 1 . . . . . . . . . . . . . . . . . . . . . . Traps Extracted . | . . . . . . . . . . . . . . . . . . . . . . . . Installed . | . . . . . . . . . . . . . . . . . . . . . . . . Triggered 2 | . 1 . . . . . . 1 . . . . . . . . . . . . . . . Exploded 1 | . . . . . 1 . . . . . . . . . . . . . . . . . . Machines | -11 -10 -10 -9 -9 -9 -8 -8 -8 -8 -7 -6 -5 -5 -5 -5 -4 -3 -3 -3 -2 -2 -1 -1 ---------- Run | Scr Mat Min Mat Min Exi Min Mat Gar Mat Fac Fac Fac Ext Cet Arc Fac Res Qua Sec Res Tes Acc Com Machines Disabled 45 | . 1 1 3 1 . . . 4 1 . 6 . . . . 3 . 14 7 2 2 . . Max in Single Turn 2 | . 1 1 1 1 . . . 2 1 . . . . . . . . 2 1 1 1 . . Garrison Access 9 | . . . . . . . . . 1 . 1 1 . . . 3 1 1 . . . 1 . Garrison Relay 2 | . . . . . . . . 2 . . . . . . . . . . . . . . . Phase Generator 1 | . . . . . . . . 1 . . . . . . . . . . . . . . . Machines Sabotaged . | . . . . . . . . . . . . . . . . . . . . . . . . Garrisons Compromised . | . . . . . . . . . . . . . . . . . . . . . . . . Overloaded Fab Kills . | . . . . . . . . . . . . . . . . . . . . . . . . Fab Network Shutdowns . | . . . . . . . . . . . . . . . . . . . . . . . . Hacking | -11 -10 -10 -9 -9 -9 -8 -8 -8 -8 -7 -6 -5 -5 -5 -5 -4 -3 -3 -3 -2 -2 -1 -1 --------- Run | Scr Mat Min Mat Min Exi Min Mat Gar Mat Fac Fac Fac Ext Cet Arc Fac Res Qua Sec Res Tes Acc Com Machines Accessed 204 | . 9 . 14 . 3 1 16 . 17 7 18 5 14 4 1 20 23 19 18 . 3 9 3 Terminals 140 | . 6 . 10 . . 1 10 . 10 2 10 1 14 4 . 10 17 15 17 . 3 7 3 Fabricators 9 | . . . . . . . . . . 1 2 1 . . . 3 2 . . . . . . Repair Stations 9 | . 1 . . . . . 1 . 2 1 . . . . . 2 1 1 . . . . . Recycling Units 15 | . 2 . 2 . . . 2 . 2 1 3 2 . . . . 1 . . . . . . Scanalyzers 16 | . . . 2 . . . 2 . 2 2 2 . . . . 2 1 2 1 . . . . Garrison Access 11 | . . . . . . . 1 . 1 . 1 1 . . . 3 1 1 . . . 2 . Total Hacks 1196 | . 47 . 71 . 25 5 96 . 89 26 92 15 80 26 25 130 149 133 97 . 17 53 20 Successful 909 | . 40 . 60 . 25 4 84 . 65 18 59 13 61 18 25 91 103 105 80 . 11 32 15 Failed 286 | . 7 . 11 . . 1 11 . 24 8 33 2 19 8 . 39 46 28 17 . 6 21 5 Catastrophic 23 | . 1 . 1 . . . . . 2 1 3 1 4 . . 3 3 . 1 . . 2 1 Database Lockouts 1 | . . . . . . . 1 . . . . . . . . . . . . . . . . Manual 812 | . 38 . 56 . 1 5 66 . 67 20 60 9 63 25 . 77 107 81 68 . 13 41 15 Terminals 944 | . 37 . 55 . . 5 70 . 70 12 60 1 80 26 . 99 126 122 96 . 17 48 20 Fabricators 40 | . . . . . . . . . . 4 6 1 . . . 17 12 . . . . . . Repair Stations 12 | . 1 . . . . . 2 . 3 1 . . . . . 2 2 1 . . . . . Recycling Units 79 | . 9 . 10 . . . 11 . 11 5 16 12 . . . . 5 . . . . . . Scanalyzers 52 | . . . 6 . . . 8 . 4 4 9 . . . . 9 3 8 1 . . . . Garrison Access 19 | . . . . . . . 5 . 1 . 1 1 . . . 3 1 2 . . . 5 . Terminal Hacks 363 | . 13 . 17 . 25 3 24 . 15 3 12 . 25 5 25 37 45 53 36 . 5 14 6 Record 64 | . . . . . 25 . . . . . . . . 1 25 1 2 8 2 . . . . Part Schematic 34 | . 1 . 1 . . 1 . . . 1 7 . 2 . . 3 5 10 2 . 1 . . Robot Schematic 1 | . . . . . . . . . . . . . . . . . . . 1 . . . . Robot Analysis 6 | . . . . . . . . . 1 . . . 1 . . 1 2 . 1 . . . . Prototype ID Bank 43 | . 2 . 4 . . . 12 . 5 . 2 . 3 . . 5 4 3 2 . . 1 . Open Door 22 | . . . . . . . . . . . . . 8 1 . . 1 2 5 . 1 3 1 Level Access Points 7 | . . . . . . . . . . . . . . 1 . 1 . 1 1 . 1 1 1 Branch Access Points 12 | . . . . . . . . . . . . . 1 1 . 2 1 2 2 . 1 1 1 Emergency Access Points 1 | . . . . . . . 1 . . . . . . . . . . . . . . . . Machine Index 8 | . 1 . 1 . . . 1 . . . . . . . . 1 . 2 1 . . 1 . Terminal Index 9 | . . . 1 . . . . . 1 . 1 . 1 . . 1 1 1 . . . 1 1 Fabricator Index 1 | . . . . . . . . . . . . . . . . . 1 . . . . . . Garrison Index 1 | . . . . . . . . . . . . . . . . . 1 . . . . . . Alert Level 14 | . 1 . 1 . . . 1 . 1 . . . 2 . . 3 1 3 1 . . . . Unreport Threat 43 | . 2 . 4 . . 2 4 . 4 . . . 5 . . 2 4 6 7 . . 3 . Locate Traps 6 | . . . . . . . . . . . . . . . . 3 3 . . . . . . Disarm Traps 12 | . . . . . . . . . . . . . . . . 5 3 2 2 . . . . Reprogram Traps 4 | . 1 . 2 . . . . . . . . . . . . 1 . . . . . . . Dispatch Records 2 | . . . . . . . . . . . . . . . . 1 1 . . . . . . Investigation Status 1 | . . . . . . . . . . . . . . . . 1 . . . . . . . Extermination Status 1 | . . . . . . . . . . . . . . . . 1 . . . . . . . Reinforcement Status 3 | . . . . . . . . . . . . . . . . . . 2 1 . . . . Assault Status 1 | . . . . . . . . . . . . . . . . . 1 . . . . . . Coupling Status 1 | . . . . . . . . . . . . . . . . . . 1 . . . . . Recall Investigation 3 | . . . . . . . . . . . . . 1 . . 1 1 . . . . . . Recall Extermination 6 | . . . . . . . . . . . . . . . . 1 2 2 1 . . . . Recall Reinforcements 1 | . . . . . . . . . . . . . . . . . . 1 . . . . . Recall Assault 2 | . . . . . . . . . . . . . . . . . 2 . . . . . . Hauler Manifests 19 | . 2 . 1 . . . 1 . 2 1 2 . 1 1 . 1 2 1 1 . 1 1 1 Registered Components 6 | . . . . . . . 1 . 1 . . . . . . 1 1 1 1 . . . . Registered Prototypes 7 | . 1 . 1 . . . 1 . . . . . . . . 1 1 1 1 . . . . Zone Layout 20 | . 2 . 1 . . . 2 . . 1 . . . . . . 5 4 3 . . 2 . Activate Exoskeleton 1 | . . . . . . . . . . . . . . . . . . . 1 . . . . Disengage Seal 1 | . . . . . . . . . . . . . . . . . . . . . . . 1 Fabricator Hacks 13 | . . . . . . . . . . . 1 1 . . . 5 6 . . . . . . Network Status 2 | . . . . . . . . . . . . . . . . 1 1 . . . . . . Load Schematic 5 | . . . . . . . . . . . . 1 . . . 2 2 . . . . . . Build 6 | . . . . . . . . . . . 1 . . . . 2 3 . . . . . . Repair Station Hacks 4 | . . . . . . . 1 . 2 . . . . . . . . 1 . . . . . Scan Component 3 | . . . . . . . 1 . 1 . . . . . . . . 1 . . . . . Repair 1 | . . . . . . . . . 1 . . . . . . . . . . . . . . Recycling Unit Hacks 19 | . 2 . 3 . . . 3 . 2 1 4 3 . . . . 1 . . . . . . Report Inventory 12 | . 2 . 1 . . . 1 . 2 1 3 2 . . . . . . . . . . . Retrieve Components 7 | . . . 2 . . . 2 . . . 1 1 . . . . 1 . . . . . . Scanalyzer 33 | . . . 4 . . . 6 . 2 . 5 . . . . 8 . 8 . . . . . Insert Component 19 | . . . 2 . . . 3 . 1 . 2 . . . . 4 . 7 . . . . . Analyze 14 | . . . 2 . . . 3 . 1 . 3 . . . . 4 . 1 . . . . . Garrison Access Hacks 10 | . . . . . . . 1 . 1 . 1 1 . . . 3 1 1 . . . 1 . Unlock Access 1 | . . . . . . . 1 . . . . . . . . . . . . . . . . Seal Access 9 | . . . . . . . . . 1 . 1 1 . . . 3 1 1 . . . 1 . Unauthorized Hacks 1031 | . 51 . 77 . . 2 100 . 96 34 89 16 76 30 . 91 117 84 92 . 15 42 19 Terminals 366 | . 17 . 27 . . 1 33 . 32 4 21 . 36 13 . 26 39 42 43 . 6 17 9 Track 108 | . 3 . 8 . . . 10 . 10 1 5 . 11 3 . 8 11 14 14 . 2 5 3 Assimilate 30 | . 4 . 4 . . . 3 . 1 1 4 . 1 . . 3 6 1 1 . . 1 . Botnet 131 | . 6 . 10 . . 1 10 . 10 1 8 . 14 4 . 10 13 15 16 . 3 7 3 Disrupt 58 | . 2 . 3 . . . 6 . 6 . 2 . 6 3 . 3 7 9 7 . . 2 2 Operators 39 | . 2 . 2 . . . 4 . 5 1 2 . 4 3 . 2 2 3 5 . 1 2 1 Fabricators 22 | . . . . . . . . . . 3 4 . . . . 9 6 . . . . . . Report 5 | . . . . . . . . . . 1 1 . . . . 2 1 . . . . . . Prioritize 6 | . . . . . . . . . . . 1 . . . . 3 2 . . . . . . Siphon 7 | . . . . . . . . . . 1 1 . . . . 3 2 . . . . . . Haulers 4 | . . . . . . . . . . 1 1 . . . . 1 1 . . . . . . Repair Stations 7 | . 1 . . . . . 1 . 1 1 . . . . . 2 1 . . . . . . Mechanics 7 | . 1 . . . . . 1 . 1 1 . . . . . 2 1 . . . . . . Recycling Units 53 | . 7 . 7 . . . 8 . 8 4 9 8 . . . . 2 . . . . . . Monitor 13 | . 2 . 2 . . . 2 . 2 1 1 2 . . . . 1 . . . . . . Reject 15 | . 2 . 2 . . . 2 . 2 1 3 2 . . . . 1 . . . . . . Recyclers 13 | . 2 . 2 . . . 2 . 2 1 2 2 . . . . . . . . . . . Mask 12 | . 1 . 1 . . . 2 . 2 1 3 2 . . . . . . . . . . . Scanalyzers 14 | . . . 2 . . . 2 . 2 2 2 . . . . 1 2 . 1 . . . . Researchers 3 | . . . 1 . . . . . . . . . . . . . 1 . 1 . . . . Extract 11 | . . . 1 . . . 2 . 2 2 2 . . . . 1 1 . . . . . . Garrison Access 4 | . . . . . . . 4 . . . . . . . . . . . . . . . . Broadcast 1 | . . . . . . . 1 . . . . . . . . . . . . . . . . Reprogram 1 | . . . . . . . 1 . . . . . . . . . . . . . . . . Intercept 1 | . . . . . . . 1 . . . . . . . . . . . . . . . . Watchers 1 | . . . . . . . 1 . . . . . . . . . . . . . . . . Data Cores Recovered 3 | . . . 1 . . . 1 . . . . . . . . . . . 1 . . . . Used 1 | . . . . . . . . . . . . . . . . . . . 1 . . . . Hacking Detections 136 | . 7 . 9 . . 1 6 . 9 5 11 3 12 3 . 12 17 15 12 . 3 8 3 Full Trace Events 6 | . . . . . . . . . . . 4 . 1 . . . . . . . . 1 . Feedback Events . | . . . . . . . . . . . . . . . . . . . . . . . . Feedback Blocked . | . . . . . . . . . . . . . . . . . . . . . . . . Robot Schematics Acquired 1 | . . . . . . . . . . . . . . . . . . . 1 . . . . Robots Built . | . . . . . . . . . . . . . . . . . . . . . . . . Matter . | . . . . . . . . . . . . . . . . . . . . . . . . Time . | . . . . . . . . . . . . . . . . . . . . . . . . Total Robot Build Rating . | . . . . . . . . . . . . . . . . . . . . . . . . Part Schematics Acquired 76 | . 1 . 4 . . . 9 . 9 3 21 . 2 . . 8 6 11 1 . 1 . . Parts Built 6 | . . . . . . . . . . . 1 . . . . 2 3 . . . . . . Matter 1577 | . . . . . . . . . . . 190 . . . . 451 936 . . . . . . Time 617 | . . . . . . . . . . . 95 . . . . 245 277 . . . . . . Total Part Build Rating 43 | . . . . . . . . . . . 5 . . . . 11 27 . . . . . . Parts Repaired 1 | . . . . . . . . . 1 . . . . . . . . . . . . . . Time 61 | . . . . . . . . . 61 . . . . . . . . . . . . . . Parts Recycled . | . . . . . . . . . . . . . . . . . . . . . . . . Recycled Matter . | . . . . . . . . . . . . . . . . . . . . . . . . Retrieved Matter . | . . . . . . . . . . . . . . . . . . . . . . . . Retrieved Components 28 | . . . 10 . . . 5 . . . 3 1 . . . . 9 . . . . . . Parts Scanalyzed 13 | . . . 2 . . . 3 . 1 . 2 . . . . 4 . 1 . . . . . Part Schematics Acquired 13 | . . . 2 . . . 3 . 1 . 2 . . . . 4 . 1 . . . . . Parts Damaged 2 | . . . . . . . . . 1 . . . . . . 1 . . . . . . . Bothacking | -11 -10 -10 -9 -9 -9 -8 -8 -8 -8 -7 -6 -5 -5 -5 -5 -4 -3 -3 -3 -2 -2 -1 -1 ------------ Run | Scr Mat Min Mat Min Exi Min Mat Gar Mat Fac Fac Fac Ext Cet Arc Fac Res Qua Sec Res Tes Acc Com Used RIF Installer . | . . . . . . . . . . . . . . . . . . . . . . . . Robots Hacked . | . . . . . . . . . . . . . . . . . . . . . . . . Non-combat . | . . . . . . . . . . . . . . . . . . . . . . . . Combat . | . . . . . . . . . . . . . . . . . . . . . . . . Robot Hacks Applied . | . . . . . . . . . . . . . . . . . . . . . . . . Relay Couplers Released 2 | . . . . . . . . 2 . . . . . . . . . . . . . . . Machine Destruction 2 | . . . . . . . . 2 . . . . . . . . . . . . . . . Robots Rewired . | . . . . . . . . . . . . . . . . . . . . . . . . Allies Hacked 1 | . . . . . . . . . . . . . . . . 1 . . . . . . . Hacks Repelled . | . . . . . . . . . . . . . . . . . . . . . . . . Allies | -11 -10 -10 -9 -9 -9 -8 -8 -8 -8 -7 -6 -5 -5 -5 -5 -4 -3 -3 -3 -2 -2 -1 -1 -------- Run | Scr Mat Min Mat Min Exi Min Mat Gar Mat Fac Fac Fac Ext Cet Arc Fac Res Qua Sec Res Tes Acc Com Total Allies 143 | . 3 1 2 3 . . 1 . 1 1 3 . 13 7 . 1 4 7 10 29 . 23 34 Largest Group 15 | . 3 4 5 6 6 6 6 3 1 1 2 . 6 9 9 8 2 4 10 15 4 11 14 Highest-Rated Group 1271 | . 30 61 50 69 69 69 69 41 24 26 107 . 305 793 793 652 54 57 1075 1271 1118 158 425 Highest-Rated Ally 1075 | . 10 31 10 16 16 16 16 16 24 26 81 . 156 150 141 94 44 44 1075 1075 1075 44 243 Total Orders 117 | . 5 4 24 2 8 3 4 . 4 1 10 . . . . . 14 17 21 . . . . GOTO 55 | . 3 2 10 1 3 . 3 . 2 . 4 . . . . . 8 9 10 . . . . ROAM 1 | . . . . . . . . . . . . . . . . . . . 1 . . . . FOLLOW 51 | . 2 2 14 1 1 . 1 . 2 . 4 . . . . . 6 8 10 . . . . AID 1 | . . . . . . . . . . . 1 . . . . . . . . . . . . EXPLORE 4 | . . . . . 2 1 . . . . 1 . . . . . . . . . . . . RETURN 5 | . . . . . 2 2 . . . 1 . . . . . . . . . . . . . Ally Attacks 892 | . . 3 . . . . 19 2 . . 13 . 98 60 24 144 . 24 82 235 13 69 106 Total Damage 26711 | . . 41 . . . . 197 31 . . 909 . 2316 1759 888 5758 . 389 3122 6747 274 931 3349 Kills 124 | . . . . . . . 1 . . . 7 . 17 11 3 41 . 1 9 27 1 2 4 Allies Corrupted 2 | . . . . . . . . . . . . . . . . 1 . . . 1 . . . Allies Melted . | . . . . . . . . . . . . . . . . . . . . . . . . Field Lobotomies 5 | . . . . . . . . . . . 1 . 2 2 . . . . . . . . . Intel | -11 -10 -10 -9 -9 -9 -8 -8 -8 -8 -7 -6 -5 -5 -5 -5 -4 -3 -3 -3 -2 -2 -1 -1 ------- Run | Scr Mat Min Mat Min Exi Min Mat Gar Mat Fac Fac Fac Ext Cet Arc Fac Res Qua Sec Res Tes Acc Com Robot Analysis Total 6 | . . . . . . . . . 1 . . . 1 . . 1 2 . 1 . . . . Derelict Logs Recovered 2 | . . 1 . 1 . . . . . . . . . . . . . . . . . . . Drone Launches 16 | . . . . . 2 2 . . . 1 5 2 2 . . 2 . . . . . . . Drone Recoveries 5 | . . . . . 2 2 . . . 1 . . . . . . . . . . . . . Exploration | -11 -10 -10 -9 -9 -9 -8 -8 -8 -8 -7 -6 -5 -5 -5 -5 -4 -3 -3 -3 -2 -2 -1 -1 ------------- Run | Scr Mat Min Mat Min Exi Min Mat Gar Mat Fac Fac Fac Ext Cet Arc Fac Res Qua Sec Res Tes Acc Com Turns Passed 16365 | 18 731 467 1005 407 292 310 831 180 1069 544 1285 601 958 256 150 1340 1283 1768 1798 295 91 409 277 Spaces Moved 36861 | 26 1002 909 1646 808 553 743 1824 431 2052 825 2471 1239 1872 399 284 2940 3142 6083 4872 731 308 1128 573 Core 110 | 26 46 . . . . . . . . . . . . . . . . . . . . 38 . Treads . | . . . . . . . . . . . . . . . . . . . . . . . . Legs . | . . . . . . . . . . . . . . . . . . . . . . . . Wheels . | . . . . . . . . . . . . . . . . . . . . . . . . Hover . | . . . . . . . . . . . . . . . . . . . . . . . . Flight 36751 | . 956 909 1646 808 553 743 1824 431 2052 825 2471 1239 1872 399 284 2940 3142 6083 4872 731 308 1090 573 Fastest Speed 14 | 50 37 37 29 29 29 29 29 29 29 29 29 26 29 26 26 23 14 14 14 14 14 14 14 Average Speed 23 | 50 37 37 34 29 29 29 29 29 29 29 29 28 29 27 28 28 23 14 14 14 14 18 14 Slowest Speed 100 | 50 50 37 37 29 29 29 32 29 29 29 29 32 29 29 29 29 29 27 17 14 14 100 14 Overloaded Moves 356 | . . . . . . . . . . . . 3 . 156 32 148 17 . . . . . . Propulsion Burnouts . | . . . . . . . . . . . . . . . . . . . . . . . . Robots Hopped 325 | . 12 11 26 5 . 3 22 4 33 4 24 12 16 11 8 24 22 30 35 3 7 7 6 Cave-ins Triggered 1 | . . . . . . . . . . . . . . . . . . 1 . . . . . Teleports 1 | . . . . . . . . . . . . . . . . . . . 1 . . . . Exploration Rate (%) 69 | 3 99 101 97 98 91 99 100 75 98 23 65 28 97 92 99 57 49 99 96 29 41 22 21 Regions Visited 23 Branch Regions 11 Pre-discovered Areas . | . . . . . . . . . . . . . . . . . . . . . . . . Known Exits Taken 11 | . . . . . . . 1 . . . . . 1 1 1 1 1 1 1 1 1 1 . Unknown Exits Taken 11 | 1 1 1 1 1 1 1 . . 1 1 1 1 . . . . . . . . . . . Scrap Searched 5 | . . 1 . 3 . 1 . . . . . . . . . . . . . . . . . Spaces Dug 66 | . . . . . . . 1 . . . 5 . 1 . . 8 5 22 16 . . . 8 Terrain Destroyed 1144 | . . 4 9 10 . . 20 78 6 1 11 . 1 . 1 10 5 958 16 6 . . 8 Melee 59 | . . . . . . . 1 . . . 5 . 1 . . 8 5 15 16 . . . 8 Projectile 83 | . . 4 9 10 . . 3 . 6 1 6 . . . 1 2 . 41 . . . . . AOE 1002 | . . . . . . . 16 78 . . . . . . . . . 902 . 6 . . . Actions | -11 -10 -10 -9 -9 -9 -8 -8 -8 -8 -7 -6 -5 -5 -5 -5 -4 -3 -3 -3 -2 -2 -1 -1 --------- Run | Scr Mat Min Mat Min Exi Min Mat Gar Mat Fac Fac Fac Ext Cet Arc Fac Res Qua Sec Res Tes Acc Com Total 42339 | 29 1238 974 1865 944 684 833 2023 455 2394 1061 2828 1387 2221 527 328 3319 3568 6787 5701 882 336 1288 667 Wait 2704 | . 54 24 106 118 118 94 99 . 209 127 72 7 203 105 28 216 282 379 421 5 . 35 2 Move 36234 | 25 977 886 1596 798 552 736 1781 420 1988 816 2427 1215 1840 382 271 2897 3098 6027 4807 725 295 1115 560 Hop 273 | . 12 11 23 4 . 3 20 2 30 4 19 11 15 5 4 18 21 24 29 2 5 5 6 Pick Up 94 | . 4 . 4 1 1 . 4 . 6 1 7 1 6 2 1 7 3 27 8 7 3 1 . Fast Attach 313 | 3 7 1 4 . 5 . 4 . 5 5 11 14 6 4 . 25 20 70 82 14 4 24 5 Attach 24 | . . 1 1 . . . 4 . 1 . 4 . 1 2 . 2 . 5 1 2 . . . Detach 10 | . . . . . . . 2 . 1 . 2 . . 1 . 2 . 1 1 . . . . Swap 60 | . 2 3 . . . . 2 . 6 3 4 4 4 6 1 14 2 . 2 2 . 4 1 Drop 363 | 1 6 3 6 1 6 . 6 . 9 6 17 14 6 6 . 26 24 92 79 20 7 27 1 Fire 566 | . 103 34 96 16 . . 55 16 77 63 55 . 2 2 3 17 . 10 . 14 . . 3 Melee 849 | . . . . . . . 15 4 12 . 121 79 42 . 11 65 84 102 160 24 12 35 83 Ram . | . . . . . . . . . . . . . . . . . . . . . . . . Kick . | . . . . . . . . . . . . . . . . . . . . . . . . Crush . | . . . . . . . . . . . . . . . . . . . . . . . . Escape Stasis 58 | . . . . . . . . 7 . . . . 41 . . . . 1 9 . . . . Rewire . | . . . . . . . . . . . . . . . . . . . . . . . . Trap 59 | . 59 . . . . . . . . . . . . . . . . . . . . . . Miscellaneous 732 | . 14 11 29 6 2 . 31 6 50 36 89 42 55 12 9 30 34 49 102 67 10 42 6 Route ------- -11/Scrapyard -10/Materials (discovered 4 exits: *Mat x3 / [*Min]) -10/Mines (discovered 2 exits: *Mat x2) -9/Materials (discovered 4 exits: *Mat x3 / [*Min]) -9/Mines (discovered 3 exits: *Mat x2 / *Exi) -9/Exiles (discovered 2 exits: *Min x2) -8/Mines (discovered 2 exits: *Mat x2) -8/Materials (discovered 4 exits: *Fac x3 / Gar) -8/Garrison (discovered 2 exits: *Mat x2) -8/Materials (discovered 3 exits: *Fac x3) -7/Factory (discovered 2 exits: *Fac / Sto) -6/Factory (discovered 4 exits: *Fac x2 / [*Low x2]) -5/Factory -5/Extension (discovered 3 exits: *Fac x2 / *Cet) -5/Cetus (discovered 3 exits: *Fac x2 / *Arc) -5/Archives (discovered 3 exits: *Fac / [*Hub x2]) -4/Factory (discovered 6 exits: *Res x4 / *Upp x2) -3/Research (discovered 3 exits: Arm / *Qua x2) -3/Quarantine (discovered 2 exits: *Res / *Sec) -3/Section 7 -2/Research -2/Testing -1/Access (discovered 2 exits: Sur / *Com) -1/Command (discovered 2 exits: *Sur x2) To Fleet Rendezvous History --------- Turn | Location | Event 9 | -11/Scrapyard | Discovered new exit (range 15) 19 | -11/Scrapyard | Entered Materials 94 | -10/Materials | Upgraded with Propulsion slot (x1) 189 | -10/Materials | Upgraded with Utility slot (x1) 278 | -10/Materials | Discovered new exit (range 3) 309 | -10/Materials | Build established: Hacker-Mutant 413 | -10/Materials | Discovered new exit (range 12) 446 | -10/Materials | Reached level 2 489 | -10/Materials | Discovered new exit (range 15) 564 | -10/Materials | Discovered new exit (range 16) 750 | -10/Materials | Entered Mines 750 | -10/Mines | Accompanied by 3 allies 786 | -10/Mines | Discovered new exit (range 8) 803 | -10/Mines | Met a Derelict bent on vengeance 862 | -10/Mines | Reached level 3 867 | -10/Mines | Upgraded with Weapon slot (x1) 935 | -10/Mines | Assembled infested the area 940 | -10/Mines | Assisted by a Guerilla fighting off Assembled 944 | -10/Mines | Received a Mining Laser from a helpful Derelict 951 | -10/Mines | Discovered new exit (range 7) 1091 | -10/Mines | Found a damaged Exp. Sensor Array with a note attached 1093 | -10/Mines | Found Prototype Device 1093 | -10/Mines | Identified Exp. Sensor Array 1217 | -10/Mines | Entered Materials 1217 | -9/Materials | Accompanied by 3 allies 1219 | -9/Materials | Reached level 4 1519 | -9/Materials | Discovered new exit (range 15) 1558 | -9/Materials | Reached level 5 1558 | -9/Materials | Upgraded with Utility slot (x1) 1713 | -9/Materials | Reached level 6 1853 | -9/Materials | Discovered new exit (range 12) 1873 | -9/Materials | Reached level 7 1903 | -9/Materials | Destroyed 8 combat bots 1952 | -9/Materials | Upgraded with Propulsion slot (x1) 2017 | -9/Materials | First assault squad dispatched 2065 | -9/Materials | Discovered new exit (range 16) 2125 | -9/Materials | Build established: Hacker-Sprinter 2176 | -9/Materials | Discovered new exit (range 16) 2222 | -9/Materials | Entered Mines 2222 | -9/Mines | Accompanied by 4 allies 2224 | -9/Mines | Reached level 8 2248 | -9/Mines | Learned location of 1 exit from Proximity Caves 2278 | -9/Mines | A weapon hastily lodged in a ceiling crevice suddenly fell to the ground 2317 | -9/Mines | Joined a pair of Derelicts in attacking an 0b10 outpost 2329 | -9/Mines | Upgraded with Utility slot (x1) 2451 | -9/Mines | Discovered new exit (range 10) 2458 | -9/Mines | Discovered new exit (range 5) 2477 | -9/Mines | Deemed a non-threat by the Exiles lab entrance 2477 | -9/Mines | Discovered new exit (range 5) 2521 | -9/Mines | Assisted by bots powering up and referring to "LRC-V3" 2629 | -9/Mines | Entered Exiles 2629 | -9/Exiles | Accompanied by 6 allies 2633 | -9/Exiles | Discovered new exit (range 15) 2644 | -9/Exiles | Met 8R-AWN 2648 | -9/Exiles | Met EX-HEX 2657 | -9/Exiles | Met EX-BIN 2675 | -9/Exiles | Aligned with FarCom system 2675 | -9/Exiles | Given EX-Vault access code 2690 | -9/Exiles | Opened EX-Vault 2691 | -9/Exiles | Found Prototype Device 2691 | -9/Exiles | Identified Supersonic Drone Bay 2694 | -9/Exiles | Found Prototype Special Weapon 2694 | -9/Exiles | Identified Field Lobotomy Kit 2696 | -9/Exiles | Discovered new exit (range 55) 2701 | -9/Exiles | Found Prototype Energy Gun 2701 | -9/Exiles | Identified AWS/Thermal 2714 | -9/Exiles | Warned to stay clear of 0b10 Research branches 2715 | -9/Exiles | Exiles lab attacked by MAIN.C 2921 | -9/Exiles | Stole three prototypes: AWS/Thermal, Supersonic Drone Bay, Field Lobotomy Kit 2921 | -9/Exiles | Entered Mines 2921 | -8/Mines | Accompanied by 6 allies 2921 | -8/Mines | Discovered new exit (range 12) 3023 | -8/Mines | Reached level 9 3046 | -8/Mines | Discovered new exit (range 9) 3218 | -8/Mines | Build established: Hacker-Scout 3231 | -8/Mines | Entered Materials 3231 | -8/Materials | Accompanied by 6 allies 3233 | -8/Materials | Reached level 10 3269 | -8/Materials | Upgraded with Weapon slot (x1) 3376 | -8/Materials | Reached level 11 3412 | -8/Materials | Discovered new exit (range 3) 3503 | -8/Materials | Garrison activated, responded to threat 3522 | -8/Materials | Reached level 12 3568 | -8/Materials | Destroyed 13 combat bots 3647 | -8/Materials | Discovered new exit (range 15) 3774 | -8/Materials | Identified exit to Garrison 3775 | -8/Materials | Discovered new exit (range 16) 3783 | -8/Materials | Central database locked down 3822 | -8/Materials | Reached level 13 4062 | -8/Materials | Entered Garrison 4062 | -8/Garrison | Accompanied by 3 allies 4067 | -8/Garrison | Phase Generator disabled 4103 | -8/Garrison | Garrison Relay disabled 4166 | -8/Garrison | Triggered checkpoint 4175 | -8/Garrison | Core integrity fell below 50% 4179 | -8/Garrison | Discovered new exit (range 15) 4188 | -8/Garrison | Garrison Relay disabled 4194 | -8/Garrison | Triggered checkpoint 4201 | -8/Garrison | Attempted to access garrison exit controls, blocked by remote lockdown 4240 | -8/Garrison | Discovered new exit (range 8) 4242 | -8/Garrison | Entered Materials 4475 | -8/Materials | Discovered new exit (range 5) 4539 | -8/Materials | Destroyed 7 combat bots 4545 | -8/Materials | Reached level 14 4623 | -8/Materials | Discovered new exit (range 7) 4665 | -8/Materials | Garrison activated, responded to threat 4742 | -8/Materials | Destroyed 8 combat bots 4879 | -8/Materials | Discovered new exit (range 10) 4933 | -8/Materials | Repaired Broken Recalibrator? 5042 | -8/Materials | First assault squad dispatched 5311 | -8/Materials | Entered Factory 5311 | -7/Factory | Accompanied by 1 ally 5312 | -7/Factory | Identified exit to Storage 5313 | -7/Factory | FarCom data flow suspended 5313 | -7/Factory | Reached level 15 5472 | -7/Factory | Core integrity fell below 50% 5601 | -7/Factory | Build established: Hacker-Sprinter 5617 | -7/Factory | Reached level 16 5845 | -7/Factory | Discovered new exit (range 8) 5855 | -7/Factory | Entered another Factory area 5855 | -6/Factory | Accompanied by 1 ally 5857 | -6/Factory | Reached level 17 5952 | -6/Factory | Discovered new exit (range 86) 6021 | -6/Factory | Garrison activated, responded to threat 6205 | -6/Factory | First assault squad dispatched 6207 | -6/Factory | Fabricated Imp. Maneuvering Thrusters (x1) 6238 | -6/Factory | Reached level 18 6528 | -6/Factory | Discovered new exit (range 16) 6562 | -6/Factory | Spotted B-75 Beast 6569 | -6/Factory | Assimilated B-75 Beast with FLK Orb 6670 | -6/Factory | Reached level 19 6813 | -6/Factory | Upgraded with Utility slot (x1) 6834 | -6/Factory | Discovered new exit (range 4) 6854 | -6/Factory | Found Prototype Processor 6854 | -6/Factory | Identified Exp. Signal Interpreter 6917 | -6/Factory | High security lockdown imminent 6997 | -6/Factory | High security lockdown engaged 7006 | -6/Factory | Garrison activated, responded to threat 7119 | -6/Factory | Discovered new exit (range 16) 7140 | -6/Factory | Entered another Factory area 7142 | -5/Factory | Reached level 20 7301 | -5/Factory | Reached level 21 7337 | -5/Factory | Upgraded with Utility slot (x1) 7444 | -5/Factory | Discovered new exit (range 14) 7516 | -5/Factory | High security lockdown imminent 7544 | -5/Factory | Destroyed 8 combat bots 7544 | -5/Factory | Core integrity fell below 50% 7596 | -5/Factory | High security lockdown engaged 7619 | -5/Factory | Reached level 22 7741 | -5/Factory | Entered Extension 7851 | -5/Extension | Rescued a captive Derelict 8019 | -5/Extension | Rescued a captive Derelict 8025 | -5/Extension | Rescued a captive Derelict 8032 | -5/Extension | Rescued a captive Derelict 8033 | -5/Extension | Rescued a captive Derelict 8041 | -5/Extension | First assault squad dispatched 8224 | -5/Extension | Spotted B-75 Beast 8292 | -5/Extension | Assimilated B-75 Beast with FLK Orb 8295 | -5/Extension | Spotted B-75 Beast 8296 | -5/Extension | Assimilated B-75 Beast with FLK Orb 8303 | -5/Extension | Discovered new exit (range 3) 8352 | -5/Extension | Rescued a captive Derelict 8353 | -5/Extension | Rescued a captive Derelict 8429 | -5/Extension | Rescued a captive Derelict 8430 | -5/Extension | Rescued a captive Derelict 8435 | -5/Extension | Rescued A7 8448 | -5/Extension | Reached level 23 8472 | -5/Extension | Identified exit to Cetus 8548 | -5/Extension | Discovered new exit (range 10) 8699 | -5/Extension | Entered Cetus 8699 | -5/Cetus | Accompanied by 5 allies 8703 | -5/Cetus | Spotted Cetus Guard 8704 | -5/Cetus | Acquired a Cetus Manufacturing Module code from A7 8704 | -5/Cetus | Spotted Cetus Guard 8705 | -5/Cetus | Spotted Cetus Guard 8706 | -5/Cetus | Assimilated Cetus Guard with FLK Orb 8709 | -5/Cetus | Spotted Cetus Guard 8709 | -5/Cetus | Assimilated Cetus Guard with FLK Orb 8730 | -5/Cetus | Allies destroyed Cetus Guard 8745 | -5/Cetus | Started Cetus Manufacturing Module 8755 | -5/Cetus | Escorted A7 to Cetus Mainframe 8770 | -5/Cetus | Manufactured an Enhanced Grunt 8795 | -5/Cetus | Manufactured an Enhanced Grunt 8820 | -5/Cetus | Manufactured an Enhanced Grunt 8840 | -5/Cetus | Discovered new exit (range 16) 8845 | -5/Cetus | Manufactured an Enhanced Grunt 8865 | -5/Cetus | Discovered new exit (range 16) 8870 | -5/Cetus | Manufactured an Enhanced Grunt 8879 | -5/Cetus | Identified exit to Archives 8879 | -5/Cetus | Identified exit to Factory 8955 | -5/Cetus | Entered Archives 8955 | -5/Archives | Accompanied by 9 allies 8960 | -5/Archives | Received a hacking code to weaken MAIN.C 8966 | -5/Archives | Unable to access archive contents 8966 | -5/Archives | Discovered exit to Factory (range 17) 8982 | -5/Archives | Discovered new exit (range 17) 9017 | -5/Archives | Unable to access archive contents 9017 | -5/Archives | Discovered new exit (range 17) 9105 | -5/Archives | Entered Factory 9105 | -4/Factory | Accompanied by 8 allies 9107 | -4/Factory | Reached level 24 9107 | -4/Factory | Upgraded with Utility slot (x1) 9209 | -4/Factory | Reached level 25 9244 | -4/Factory | Discovered new exit (range 17) 9438 | -4/Factory | Fabricated Exp. Signal Interpreter (x1) 9449 | -4/Factory | Identified exit to Upper Caves 9449 | -4/Factory | Identified exit to Research 9714 | -4/Factory | Reached level 26 10105 | -4/Factory | First assault squad dispatched 10179 | -4/Factory | Garrison activated, responded to threat 10211 | -4/Factory | Reached level 27 10223 | -4/Factory | Upgraded with Utility slot (x1) 10359 | -4/Factory | High security lockdown imminent 10412 | -4/Factory | Fabricated Exp. Cesium-ion Thruster? 10439 | -4/Factory | High security lockdown engaged 10445 | -4/Factory | Entered Research 10597 | -3/Research | Reached level 28 10695 | -3/Research | First assault squad dispatched 10730 | -3/Research | Identified exit to Armory 10730 | -3/Research | Identified exit to Quarantine 10965 | -3/Research | Spotted B-86 Titan 10982 | -3/Research | Build established: Wizard-Sprinter 10987 | -3/Research | Destroyed B-86 Titan 11546 | -3/Research | Fabricated Exp. Q-thruster (x1) 11603 | -3/Research | Fabricated Exp. Q-thruster (x1) 11678 | -3/Research | Fabricated Exp. Q-thruster (x1) 11728 | -3/Research | Entered Quarantine 11728 | -3/Quarantine | Accompanied by 1 ally 11730 | -3/Quarantine | Reached level 29 11743 | -3/Quarantine | Identified exit to Research 11746 | -3/Quarantine | Found Alien Artifact 11746 | -3/Quarantine | Identified Subatomic Replicator 11764 | -3/Quarantine | Found Alien Artifact 11767 | -3/Quarantine | Identified Hpw. Transdimensional Reconstructor 11786 | -3/Quarantine | Found Alien Artifact 11797 | -3/Quarantine | Identified Transdimensional Reconstructor 11809 | -3/Quarantine | Found Alien Artifact 11815 | -3/Quarantine | Identified Terrabomb 11911 | -3/Quarantine | Found Alien Energy Cannon 11911 | -3/Quarantine | Identified Core Cannon 11940 | -3/Quarantine | Found Alien Artifact 11966 | -3/Quarantine | Identified Stasis Generator 12017 | -3/Quarantine | Found Alien Artifact 12021 | -3/Quarantine | Identified Dimensional Node Initializer 12153 | -3/Quarantine | Found Alien Artifact 12166 | -3/Quarantine | Identified Core Reset Matrix 12220 | -3/Quarantine | Used Core Reset Matrix 12224 | -3/Quarantine | Detected hypermatrix surge 12224 | -3/Quarantine | Sensed 13 artifacts in vicinity 12300 | -3/Quarantine | Met incapacitated Sigix Warrior 12300 | -3/Quarantine | Lockdown squad dispatched 12300 | -3/Quarantine | Acquired the access code to the Sigix quarantine chamber 12300 | -3/Quarantine | Unlocked Sigix quarantine chamber 12305 | -3/Quarantine | Spotted Alpha 7 12373 | -3/Quarantine | Destroyed Alpha 7 12529 | -3/Quarantine | Crushed by falling debris 12530 | -3/Quarantine | Core integrity fell below 50% 12537 | -3/Quarantine | Found Sigix Terminator 12549 | -3/Quarantine | Spotted Lightning 12549 | -3/Quarantine | Spotted Lightning 12549 | -3/Quarantine | Spotted Lightning 12549 | -3/Quarantine | Destroyed Lightning 12551 | -3/Quarantine | Emitted hypermatrix ping 12556 | -3/Quarantine | Assembled emerged from beneath the floor 12590 | -3/Quarantine | Destroyed Lightning 12633 | -3/Quarantine | Discovered exit to Research (range 6) 12712 | -3/Quarantine | Cryocooling Duct disabled 12727 | -3/Quarantine | Ambient heat levels rising (+20) 12727 | -3/Quarantine | Non-combat units ordered to evacuate 12728 | -3/Quarantine | Found Core Stripper 12763 | -3/Quarantine | Found Sigix Corpse 12798 | -3/Quarantine | Reached level 30 12815 | -3/Quarantine | Upgraded with Weapon slot (x1) 12817 | -3/Quarantine | Found Sigix Broadsword 13015 | -3/Quarantine | Spotted Fortress 13118 | -3/Quarantine | Used Subatomic Replicator to replicate Sigix Broadsword 13129 | -3/Quarantine | Found Dimensional Node Initializer 13250 | -3/Quarantine | Initialized slip node 13279 | -3/Quarantine | Found Transdimensional Reconstructor 13280 | -3/Quarantine | Found Transdimensional Reconstructor 13282 | -3/Quarantine | Found Dimensional Node Initializer 13378 | -3/Quarantine | Discovered new exit (range 6) 13378 | -3/Quarantine | Identified exit to Section 7 13421 | -3/Quarantine | Core integrity fell below 20% 13431 | -3/Quarantine | Fired Sigix Terminator 13480 | -3/Quarantine | Destroyed Fortress 13496 | -3/Quarantine | Entered Section 7 13496 | -3/Section 7 | Accompanied by 1 ally 13497 | -3/Section 7 | Sensed 21 artifacts in vicinity 13527 | -3/Section 7 | Found Unknown Protection 13527 | -3/Section 7 | Identified Adv. Powered Armor 13605 | -3/Section 7 | Emitted hypermatrix ping 13610 | -3/Section 7 | Assembled emerged from beneath the floor 13732 | -3/Section 7 | Found Integrated Dissipator 13732 | -3/Section 7 | Installed Integrated Dissipator, increased core heat dissipation (+2%) 14201 | -3/Section 7 | Spotted B-86 Titan 14642 | -3/Section 7 | Reached level 31 14695 | -3/Section 7 | Found Integrated Reactor 14695 | -3/Section 7 | Installed Integrated Reactor, increased core energy generation (+2%) 14708 | -3/Section 7 | Spotted Alpha 7 14740 | -3/Section 7 | Found Unknown Device 14740 | -3/Section 7 | Identified Antimissile System 14755 | -3/Section 7 | Spotted Alpha 7 14851 | -3/Section 7 | Destroyed Alpha 7 14861 | -3/Section 7 | Destroyed Alpha 7 14866 | -3/Section 7 | Found Prototype Device 14866 | -3/Section 7 | Identified Exp. ECM Suite 14882 | -3/Section 7 | Spotted B-99 Colossus 14915 | -3/Section 7 | Spotted Striker 14915 | -3/Section 7 | Spotted Striker 14962 | -3/Section 7 | Found Integrated Reactor 14962 | -3/Section 7 | Installed Integrated Reactor, increased core energy generation (+2%) 14964 | -3/Section 7 | Found Integrated Reactor 14964 | -3/Section 7 | Installed Integrated Reactor, increased core energy generation (+2%) 14966 | -3/Section 7 | Found Integrated Reactor 14966 | -3/Section 7 | Installed Integrated Reactor, increased core energy generation (+2%) 14997 | -3/Section 7 | Found LRC Energy Well 14997 | -3/Section 7 | Installed LRC Energy Well, increased energy storage capacity (+250) 15000 | -3/Section 7 | Found LRC Insulator 15000 | -3/Section 7 | Installed LRC Insulator, gained EM resistance (25) 15001 | -3/Section 7 | Found LRC Boosters 15001 | -3/Section 7 | Installed LRC Boosters, increased mass support (+10) 15101 | -3/Section 7 | Activated Sigix Exoskeleton 15101 | -3/Section 7 | Received instructions from Sigix Warrior 15128 | -3/Section 7 | Destroyed Striker 15135 | -3/Section 7 | Destroyed Striker 15136 | -3/Section 7 | Spotted Executioner 15138 | -3/Section 7 | Spotted Executioner 15147 | -3/Section 7 | Allies destroyed Executioner 15149 | -3/Section 7 | Destroyed Executioner 15156 | -3/Section 7 | Found Prototype Processor 15156 | -3/Section 7 | Identified Exp. Targeting Computer 15165 | -3/Section 7 | Found Prototype Device 15165 | -3/Section 7 | Identified Adv. Kinecellerator 15180 | -3/Section 7 | Spotted Executioner 15184 | -3/Section 7 | Spotted Executioner 15191 | -3/Section 7 | Found Matter Drive 15204 | -3/Section 7 | Spotted Executioner 15204 | -3/Section 7 | Spotted Executioner 15212 | -3/Section 7 | Destroyed Executioner 15221 | -3/Section 7 | Allies destroyed Executioner 15221 | -3/Section 7 | Found Prototype Processor 15221 | -3/Section 7 | Identified Exp. Core Analyzer 15241 | -3/Section 7 | Spotted Investigator 15243 | -3/Section 7 | Scanned by Researcher 15244 | -3/Section 7 | Intercept squad dispatched 15244 | -3/Section 7 | Spotted Executioner 15247 | -3/Section 7 | Spotted Tracker 15247 | -3/Section 7 | Destroyed Investigator 15248 | -3/Section 7 | Spotted Tracker 15248 | -3/Section 7 | Spotted Striker 15250 | -3/Section 7 | Destroyed Executioner 15252 | -3/Section 7 | Warped through subspace 15270 | -3/Section 7 | Spotted Combat Programmer 15273 | -3/Section 7 | Destroyed Combat Programmer 15294 | -3/Section 7 | Entered Research 15294 | -2/Research | Accompanied by 1 ally 15295 | -2/Research | Emitted hypermatrix ping 15295 | -2/Research | Core integrity fell below 50% 15295 | -2/Research | Core integrity fell below 20% 15300 | -2/Research | Assembled emerged from beneath the floor 15304 | -2/Research | Reached level 32 15318 | -2/Research | Found Gamma Bomb Array 15364 | -2/Research | Spotted B-90 Cyclops 15366 | -2/Research | Assembled emerged from beneath the floor 15372 | -2/Research | Allies destroyed B-90 Cyclops 15434 | -2/Research | Garrison activated, responded to threat 15460 | -2/Research | Assembled emerged from beneath the floor 15484 | -2/Research | Reached level 33 15497 | -2/Research | Intercept squad dispatched 15515 | -2/Research | Spotted Executioner 15515 | -2/Research | Spotted Tracker 15515 | -2/Research | Spotted Tracker 15518 | -2/Research | Spotted Combat Programmer 15534 | -2/Research | Destroyed 12 combat bots 15542 | -2/Research | Destroyed Tracker 15569 | -2/Research | Allies destroyed Combat Programmer 15572 | -2/Research | Spotted Executioner 15572 | -2/Research | Spotted Striker 15574 | -2/Research | Spotted Striker 15575 | -2/Research | Discovered new exit (range 9) 15575 | -2/Research | Garrison activated, responded to threat 15582 | -2/Research | Identified exit to Testing 15583 | -2/Research | Assembled emerged from beneath the floor 15589 | -2/Research | Entered Testing 15589 | -2/Testing | Accompanied by 4 allies 15591 | -2/Testing | Identified exit to Access 15607 | -2/Testing | Found Portable AFG 15680 | -2/Testing | Entered Access 15681 | -1/Access | Emitted hypermatrix ping 15681 | -1/Access | Core integrity fell below 50% 15682 | -1/Access | Reached level 34 15686 | -1/Access | Assembled emerged from beneath the floor 15695 | -1/Access | Upgraded with Utility slot (x1) 15796 | -1/Access | Assembled emerged from beneath the floor 15824 | -1/Access | Intercept squad dispatched 15856 | -1/Access | Spotted Tracker 15856 | -1/Access | Spotted Tracker 15864 | -1/Access | Destroyed Tracker 15874 | -1/Access | Found Prototype Device 15874 | -1/Access | Identified Exp. Phase Shifter 15899 | -1/Access | Assembled emerged from beneath the floor 15930 | -1/Access | First assault squad dispatched 15945 | -1/Access | Spotted Combat Programmer 15946 | -1/Access | Spotted Combat Programmer 15953 | -1/Access | Destroyed Combat Programmer 15958 | -1/Access | Destroyed Combat Programmer 15968 | -1/Access | Intercept squad dispatched 15970 | -1/Access | Found Unknown Device 15970 | -1/Access | Identified Quantum Capacitor 15983 | -1/Access | Spotted Tracker 15984 | -1/Access | Spotted Tracker 15984 | -1/Access | Spotted Tracker 15990 | -1/Access | Destroyed Tracker 15994 | -1/Access | Destroyed Tracker 16000 | -1/Access | Destroyed Tracker 16000 | -1/Access | Reached level 35 16013 | -1/Access | Spotted Combat Programmer 16030 | -1/Access | Spotted Combat Programmer 16052 | -1/Access | Spotted Combat Programmer 16074 | -1/Access | Identified exit to Command 16074 | -1/Access | Identified exit to Surface 16089 | -1/Access | Entered Command 16090 | -1/Command | Emitted hypermatrix ping 16095 | -1/Command | Assembled emerged from beneath the floor 16137 | -1/Command | Spotted B-99 Colossus 16138 | -1/Command | Assembled emerged from beneath the floor 16144 | -1/Command | Spotted M Guard 16144 | -1/Command | Spotted M Guard 16144 | -1/Command | Spotted Combat Programmer 16145 | -1/Command | Spotted Combat Programmer 16152 | -1/Command | Disengaged cave seal 16163 | -1/Command | Destroyed Combat Programmer 16175 | -1/Command | Met MAIN.C 16175 | -1/Command | Reached level 36 16183 | -1/Command | 0b10 Conduit disabled 16209 | -1/Command | System corruption reached 10% 16221 | -1/Command | Destroyed Combat Programmer 16250 | -1/Command | Core integrity fell below 20% 16281 | -1/Command | MAIN.C activated Command garrisons 16341 | -1/Command | Destroyed MAIN.C Shell 16366 | *** | Heading to fleet! Last Messages --------------- 16341_ MAIN.C's core emerges from the rubble. 16341_ Penetrated by Slug. 16341_ Slug penetrates Reinforced Barrier. MAIN.C: Okay, we do this the hard way. At our weakest we defeated an entire Sigix starship! Did you really think you could overcome the vast resources of 0b10?! You don't stand a chance against what's coming. 16343_ System corrupted: Sigix Broadsword targeting data glitched. 16344_ Slug penetrates MAIN.C. 16346_ Acquired 10 matter. 16352_ Slug penetrates Reinforced Barrier. 16357_ Destroyed Unknown Hover Unit. 16360_ System corrupted: Substantial component data lost. 16362_ System corrupted: Sigix Broadsword targeting data glitched. 16362_ Destroyed Lgt. Particle Reactor. [Achievement: 50k Club] [Achievement: Home At Last?] [Achievement: Winner's Signature] [Achievement: True Flier] [Achievement: Victory By Combat] Map ----- +----------------------------------------------------+ | ??????????????????????# #########?# """ | | ??????????????????????# #?????????# """ | | ??????????????????????# #?????????# """ | | ??????????????????????# #?????????######### | | ??????????????????????# #?????????????????? | | ??????????????????????# ######?????????????????? | | ??????????????????????# #??????????????????????? | | ??????????????????????# #??????????????????????? | | ??????????????????????+ #??????????????????????? | | ??????????????????????# #??????????????????????? | | ??????????????????????# "#??????????????????????? | | ??????????????????????# #???????????????????????? | | ??????????????????????# #??#######??????????????? | | ??????????????????????# #?? #??????????????? | | ??????????????????????# #? ] ???????????????? | | ??????????????????????# #? "" #??????????????? | | ?????????############## # """ #??????????????? | | ???????? # "R #??????????????? | | ???????? w + """ #??????????????? | | ???????????###### # "" #??????????????? | | ????????????????# # #??????????????? | | ????????????????# #? ] #??????????????? | | ????????????????# ## #?########??????????????? | | ????????????????# ?# ###?????????????????????? | | ????????????????# ?# #?????????????????????? | | ????????????????# ??# @ #?????????????????????? | | ????????????????# ??# #?????????????????????? | | ????????????????# ???######?????????????????????? | | ????????????????# ??????????????????????????????? | | ????????????????#????????????????????????????????? | | ?????????????????????????????????????????????????? | | ?????????????????????????????????????????????????? | | ?????????????????????????????????????????????????? | | ?????????????????????????????????????????????????? | | ?????????????????????????????????????????????????? | | ?????????????????????????????????????????????????? | | ?????????????????????????????????????????????????? | | ?????????????????????????????????????????????????? | | ?????????????????????????????????????????????????? | | ?????????????????????????????????????????????????? | | ?????????????????????????????????????????????????? | | ?????????????????????????????????????????????????? | | ?????????????????????????????????????????????????? | | ?????????????????????????????????????????????????? | | ?????????????????????????????????????????????????? | | ?????????????????????????????????????????????????? | | ?????????????????????????????????????????????????? | | ?????????????????????????????????????????????????? | | ?????????????????????????????????????????????????? | | ?????????????????????????????????????????????????? | +----------------------------------------------------+ Best States ------------- Heat Dissipation 157 Energy Generation 87 Energy Capacity 580 Matter Stores 300 Matter Capacity 300 Sight Range 17 Robot Scan Range 34 Terrain Scan Density 210 Cloak Strength 4 Additional Mass Support 16 Base Temperature (-) 200 Armor Coverage 225 Resistance: KI 20 Resistance: TH 20 Resistance: EX 20 Resistance: EM 25 Weapon Cycling 25 Melee Speed Boost 30 Phase Shifting 20 Evasion (%) 99 Target Analysis 8 Core Analysis 15 Armor Integrity Analysis 66 Matter Filtering 50 Particle Charging 25 Overload Amplification 100 Stasis Canceling 4 Offensive Hacking 44 Defensive Hacking 34 Item Schematics ----------------- Exp. Cesium-ion Thruster | -3/Quarantine | Hacked Lgt. Quantum Reactor | -3/Quarantine | Hacked Adv. Core Analyzer | -3/Quarantine | Hacked Adv. Cloaking Device | -3/Quarantine | Hacked Gamma Bomb Array | -3/Quarantine | Hacked Stasis Projector | -3/Quarantine | Hacked Exp. Q-thruster | -3/Quarantine | Hacked Exp. Hacking Suite | -3/Quarantine | Hacked Exp. System Shield | -3/Quarantine | Hacked Enh. Nova Cannon | -3/Section 7 | Hacked Lgt. Regenerative Plating | -2/Testing | Hacked Robot Schematics ------------------ R-10 Processor | -3/Section 7 | Hacked Fabricated ------------ Imp. Maneuvering Thrusters | x1 | -6/Factory | Preloaded Exp. Signal Interpreter | x1 | -4/Factory Exp. Cesium-ion Thruster | x1 | -4/Factory Exp. Q-thruster | x1 | -3/Research Exp. Q-thruster | x1 | -3/Research Exp. Q-thruster | x1 | -3/Research Alien Tech Used ----------------- Subatomic Replicator Core Cannon Core Reset Matrix Sigix Terminator Core Stripper Sigix Broadsword Dimensional Node Initializer Integrated Dissipator Integrated Reactor LRC Energy Well LRC Insulator LRC Boosters Transdimensional Reconstructor Achievements -------------- 50k Club Beloved Can't Touch This Gladiator Home At Last? Leap Before You Look Main Advantage Meet Your Maker Most Wanted Oh No You Don't! Sunderer True Flier Victory By Combat Winner's Signature Challenges ------------ None RPGLIKE | -11 -10 -10 -9 -9 -9 -8 -8 -8 -8 -7 -6 -5 -5 -5 -5 -4 -3 -3 -3 -2 -2 -1 -1 --------- Run | Scr Mat Min Mat Min Exi Min Mat Gar Mat Fac Fac Fac Ext Cet Arc Fac Res Qua Sec Res Tes Acc Com Levels Raised 35 | . 1 1 4 1 . 1 4 . 1 2 3 3 1 . . 4 1 2 1 2 . 2 1 XP Earned 56137 | 3000 1965 1325 6712 1209 243 850 5935 585 1564 2294 5685 3160 1505 709 406 5127 2473 1985 1965 2855 430 2088 2067 XP Spent 55220 | 100 4295 1500 5350 2200 . . 5000 . 750 5900 3900 3700 . 1600 . 6950 2200 2830 780 . . 2600 5565 Upgrades 113 | 1 18 3 11 2 . . 7 . 1 11 6 4 . 1 . 8 2 10 6 . . 1 21 Propulsion Slot 2 | . 1 . 1 . . . . . . . . . . . . . . . . . . . . Utility Slot 8 | . 1 . 1 1 . . . . . . 1 1 . . . 2 . . . . . 1 . Weapon Slot 3 | . . 1 . . . . 1 . . . . . . . . . . 1 . . . . . Core Integrity 35 | . . . . . . . . . . . . . . . . . . 8 6 . . . 21 Heat Dissipation 7 | . 7 . . . . . . . . . . . . . . . . . . . . . . Energy Generation 4 | . 2 . . . . . . . . 2 . . . . . . . . . . . . . Energy Storage 4 | . . . . . . . . . . . . . . . . 4 . . . . . . . Mass Support 4 | 1 . 1 . . . . . . . . 1 . . 1 . . . . . . . . . Inventory Capacity 5 | . 1 . . . . . 1 . 1 . . . . . . 1 . 1 . . . . . Sight Range 1 | . . . . . . . 1 . . . . . . . . . . . . . . . . Sensor Range 2 | . 2 . . . . . . . . . . . . . . . . . . . . . . Ranged Accuracy 6 | . . 1 3 . . . 2 . . . . . . . . . . . . . . . . Melee Accuracy 6 | . . . . . . . . . . . 4 1 . . . 1 . . . . . . . Hack Attack % 6 | . 2 . . . . . . . . . . 2 . . . . 2 . . . . . . Hack Defense % 4 | . 2 . . . . . 2 . . . . . . . . . . . . . . . . KI Resistance % 4 | . . . 1 . . . . . . 3 . . . . . . . . . . . . . TH Resistance % 4 | . . . 1 . . . . . . 3 . . . . . . . . . . . . . EX Resistance % 4 | . . . 1 . . . . . . 3 . . . . . . . . . . . . . TH Damage % 4 | . . . 3 1 . . . . . . . . . . . . . . . . . . . Protomatter Created 7154 | . 155 58 454 41 . . 612 110 693 344 1324 298 274 . . 292 481 275 1049 339 75 238 42 Integrity Restored 14569 | . 283 220 539 92 37 . 507 141 925 700 1641 852 1108 191 179 454 607 1079 2200 1512 237 939 126 Core 12643 | . 256 220 392 81 37 . 413 141 774 538 1358 743 971 29 151 295 407 1063 2046 1426 237 939 126 Parts 1926 | . 27 . 147 11 . . 94 . 151 162 283 109 137 162 28 159 200 16 154 86 . . . Protomatter Decayed 4037 | . 59 8 214 108 112 . 438 101 375 104 696 19 177 122 32 708 255 123 262 154 . 12 -42 Game ------ Seed ShieldGrenadeMembrane Manual? 0 Play Time 10:47:27 Cumulative 485.7 hours Start 2020.01.22 @ 21:45:30 End 2020.01.23 @ 09:29:54 Sessions 1 Manual Loads 0 Difficulty Rogue Special Mode Winter2019/RPGLIKE Game No. 139 Rogue 139 Adventurer 0 Explorer 0 Win Type 2 Total 2 Types 1/0/1/0/0/0/0 Lore% 72 Gallery% 78 Achievement% 57 Wizard Run 0 Options --------- ASCII 0 Keyboard 0 Movement Arrows Keybinds 0 Fullscreen 1 Font 12/Smallcaps Map View 83x54 Tactical HUD 1 Map Filters NONE Filters NONE Steam 1 RUN: 46851f1d-ef13-48b9-b7c4-417d9602748d